bitfinex-derivatives/quotes_ETHF0:USTF0_20250810
["timestamp","ask_amount","ask_price","bid_price","bid_amount"]
[1754788774343,6.4026,4303.7,4303.6,0.3247962]
[1754788775145,6.4026,4303.7,4303.6,2.8894962]
[1754788775346,3.2078,4304.3,4304.2,3.2922]
[1754788775549,3.2078,4304.3,4304.2,3.6169962]
[1754788775750,3.2078,4304.3,4304.2,0.3247962]
[1754788775944,6.4328,4304.3,4304.2,2.1913962]
[1754788776250,3.9343,4304.3,4304.2,2.8999962]
[1754788776547,3.2078,4304.3,4304.2,3.6169962]
[1754788777050,1.3989,4304.7,4304.6,2.5752]
[1754788777249,0.7265,4304.7,4304.6,3.6169962]
[1754788777449,3.2078,4304.9,4304.8,3.2922]
[1754788777652,3.9343,4304.9,4304.8,3.6169962]
[1754788777946,5.0689,4304.9,4304.8,2.8999962]
[1754788778252,3.9343,4304.9,4304.8,3.6169962]
[1754788778648,6.4328,4304.9,4304.8,0.3247962]
[1754788779148,6.4328,4304.9,4304.8,1.2190962]
[1754788779348,3.9343,4304.9,4304.8,3.6169962]
[1754788779752,3.9343,4305.4,4305.3,0.4644]
[1754788780054,3.2078,4305.9,4305.8,3.2922]
[1754788780348,3.2078,4305.9,4305.8,3.6169962]
[1754788780746,1.3989,4306.0,4305.8,0.3247962]
[1754788780947,3.2078,4306.0,4305.9,0.3230235]
[1754788781156,3.2078,4306.0,4305.9,3.6152235]
[1754788781455,0.7265,4306.3,4306.2,1.3354]
[1754788781752,3.9343,4306.5,4306.4,3.2922]
[1754788781952,3.9343,4306.5,4306.4,3.6152235]
[1754788782248,5.0689,4306.5,4306.4,3.6152235]
[1754788782448,5.5647,4306.5,4306.4,2.8982235]
[1754788782953,4.6067,4306.5,4306.4,3.6152235]
[1754788783154,5.5647,4306.5,4306.4,2.8982235]
[1754788783448,3.2078,4306.5,4306.4,3.6152235]
[1754788783844,5.5647,4306.5,4306.4,3.6152235]
[1754788784046,5.5647,4306.5,4306.4,2.8982235]
[1754788784248,5.913,4306.5,4306.4,2.8982235]
[1754788786449,5.913,4306.5,4306.4,3.6152235]
[1754788786657,3.9343,4307.0,4306.8,0.46424]
[1754788786851,3.2078,4307.0,4306.9,3.2922]
[1754788787155,3.2078,4307.0,4306.9,3.61382557]
[1754788787749,6.4328,4307.0,4306.9,0.32162557]
[1754788788152,1.3063,4306.6,4306.5,1.84087]
[1754788788451,3.225,4306.6,4306.5,2.16229409]
[1754788789543,3.225,4306.6,4306.5,0.32142409]
[1754788789953,3.225,4306.6,4306.0,0.5312]
[1754788789954,1.3063,4306.1,4306.0,1.84091]
[1754788790155,3.225,4306.1,4306.0,2.65219595]
[1754788790453,3.225,4306.1,4306.0,3.36079595]
[1754788790655,2.7052,4306.1,4306.0,3.36079595]
[1754788792052,3.2078,4307.0,4306.7,3.03945]
[1754788792248,0.7265,4307.1,4307.0,3.2922]
[1754788792444,0.7265,4307.1,4307.0,4.07764781]
[1754788792643,3.225,4307.1,4307.0,2.18782781]
[1754788792845,3.225,4306.8,4306.5,0.46426]
[1754788793052,1.3063,4306.8,4306.7,0.8631]
[1754788793355,1.3063,4306.8,4306.7,3.39639618]
[1754788793557,3.225,4306.8,4306.7,3.39639618]
[1754788794250,3.225,4306.8,4306.7,0.82119618]
[1754788794653,3.68924,4306.8,4306.7,0.82119618]
[1754788795046,3.225,4306.8,4306.7,0.5]
[1754788795246,3.225,4306.8,4306.7,0.82144264]
[1754788796354,3.225,4306.8,4306.7,0.5]
[1754788796864,2.3569,4305.3,4305.2,3.03961]
[1754788797156,2.3569,4305.3,4305.2,3.36142865]
[1754788797352,3.2078,4306.2,4305.9,0.46433]
[1754788797556,3.225,4306.0,4305.9,2.33093]
[1754788797753,1.16036,4307.8,4305.9,2.33093]
[1754788797754,0.7265,4306.4,4306.1,1.3354]
[1754788797953,0.6724,4306.6,4306.5,1.3354]
[1754788798157,0.5,4306.8,4306.7,0.46425]
[1754788798358,0.5,4306.8,4306.7,2.74305264]
[1754788798554,2.4187,4306.8,4306.7,0.32200264]
[1754788799263,2.4187,4306.8,4306.7,0.82200264]
[1754788799554,5.92707066,4306.8,4306.7,0.07820264]
[1754788799757,0.4643,4306.2,4305.7,0.46436]
[1754788799951,0.5198,4306.0,4305.7,0.46436]
[1754788800151,0.5198,4305.9,4305.7,0.46436]
[1754788800359,1.2463,4305.2,4304.3,3.2078]
[1754788800557,1.9187,4304.7,4304.4,0.9957]
[1754788800755,1.3989,4304.8,4304.5,0.46448]
[1754788800962,3.2078,4305.4,4305.3,0.717]
[1754788801260,3.2078,4305.4,4305.3,1.9568]
[1754788802360,0.6724,4306.0,4305.4,1.9568]
[1754788802559,3.2078,4306.1,4305.6,0.5312]
[1754788802760,0.54557977,4306.4,4306.0,1.9568]
[1754788803060,3.2078,4306.2,4305.7,22.453]
[1754788803460,3.2078,4306.2,4305.7,22.9842]
[1754788803655,0.6724,4306.0,4305.7,0.46435]
[1754788803860,1.21797977,4306.1,4305.5,1.9568]
[1754788804160,3.2078,4306.2,4305.9,0.7086]
[1754788804353,3.2078,4306.2,4306.1,1.9568]
[1754788804758,1.9244978,4306.6,4306.2,0.46431]
[1754788804960,0.6224,4306.6,4306.2,0.46431]
[1754788805154,0.6224,4306.6,4306.4,2.36378]
[1754788805360,0.6224,4306.6,4306.5,1.8995]
[1754788805565,1.79767757,4306.8,4306.6,0.46426]
[1754788805764,3.2078,4306.9,4306.7,1.8995]
[1754788806361,3.2078,4306.9,4306.7,24.3485]
[1754788806658,3.2078,4306.9,4306.8,1.8995]
[1754788807065,1.2520978,4307.3,4306.9,0.46423]
[1754788807260,1.907,4307.2,4306.9,0.46423]
[1754788807460,1.907,4307.1,4307.0,1.1864]
[1754788808063,1.9307978,4307.3,4307.1,0.46421]
[1754788808260,1.2520978,4307.3,4307.2,1.8995]
[1754788808459,1.7707978,4307.5,4307.1,0.97371]
[1754788808659,1.2520978,4307.5,4307.3,0.97369]
[1754788808861,1.9307978,4307.5,4307.4,1.8995]
[1754788809061,1.2520978,4307.5,4307.4,1.8995]
[1754788809266,1.2520978,4307.7,4307.5,2.36366]
[1754788809562,1.2520978,4307.6,4307.5,2.36366]
[1754788809763,1.2520978,4307.7,4307.6,1.8995]
[1754788809965,1.2520978,4308.2,4307.8,0.46413]
[1754788810267,1.2520978,4308.5,4308.2,1.68669]
[1754788810468,0.6787,4308.4,4308.3,1.39]
[1754788810668,1.907,4308.4,4308.3,0.6769]
[1754788810862,1.2520978,4308.5,4308.2,0.46409]
[1754788811057,1.2283,4308.3,4307.7,3.2078]
[1754788811262,5.68415123,4308.4,4308.3,1.65048]
[1754788811463,5.1148,4308.4,4308.3,1.65048]
[1754788811665,5.14167977,4308.4,4308.3,1.65048]
[1754788811862,3.75337977,4308.4,4308.3,1.65048]
[1754788812070,3.2078,4308.4,4308.3,1.65048]
[1754788812273,0.6787,4308.4,4308.3,1.65048]
[1754788812568,1.907,4308.4,4308.3,1.65048]
[1754788812770,1.3883,4308.4,4308.3,2.36358]
[1754788813466,1.907,4308.4,4308.3,2.36358]
[1754788813664,1.907,4308.4,4308.3,1.65048]
[1754788813864,1.907,4308.4,4308.1,0.46409]
[1754788814065,1.907,4308.2,4308.1,0.97359]
[1754788814763,1.2283,4308.2,4307.8,0.46413]
[1754788814970,1.907,4308.1,4307.7,0.46414]
[1754788815269,0.54557977,4308.3,4307.7,0.97364]
[1754788815463,1.907,4307.8,4307.7,1.65054]
[1754788816069,1.907,4308.1,4307.5,0.46416]
[1754788816264,0.54557977,4308.3,4307.2,0.5095]
[1754788816265,0.5187,4307.5,4307.2,0.5095]
[1754788816467,0.54557977,4307.7,4307.2,0.5095]
[1754788816770,1.907,4307.3,4307.2,0.9737]
[1754788817862,1.907,4307.3,4307.2,1.6506]
[1754788818260,1.907,4307.3,4307.2,0.6769]
[1754788818463,1.907,4307.2,4306.4,0.5095]
[1754788818770,0.6787,4306.9,4306.5,0.46427]
[1754788818964,0.5187,4306.7,4306.4,22.426]
[1754788819172,0.46423,4306.9,4306.2,22.8893]
[1754788819362,0.46425,4306.7,4306.1,23.39881]
[1754788819567,1.907,4306.2,4306.1,22.9345]
[1754788819761,1.907,4306.2,4305.9,0.46434]
[1754788819963,1.907,4306.2,4305.7,22.88835]
[1754788820168,0.6787,4305.9,4305.4,22.423]
[1754788820380,1.2283,4305.6,4305.5,0.5095]
[1754788820561,0.46434,4305.9,4305.5,0.5095]
[1754788820762,0.46434,4305.9,4304.9,0.7131]
[1754788820763,0.46437,4305.6,4304.8,0.46446]
[1754788820958,1.3883,4305.2,4304.8,22.422]
[1754788821164,3.2078,4305.2,4304.9,0.46444]
[1754788821369,1.907,4305.1,4304.9,0.97394]
[1754788821566,3.2078,4305.7,4305.6,0.46437]
[1754788821768,3.2078,4305.7,4305.6,24.07477]
[1754788822071,0.54415163,4306.1,4306.0,2.36383]
[1754788822272,1.907,4306.1,4306.0,1.2226]
[1754788822471,1.907,4306.1,4306.0,0.5095]
[1754788822768,1.907,4306.1,4306.0,1.1864]
[1754788822969,1.907,4306.1,4306.0,1.8995]
[1754788823273,0.54415163,4306.6,4306.5,1.8995]
[1754788823467,1.22285163,4307.1,4306.5,24.3225]
[1754788823668,1.907,4307.0,4306.5,0.5095]
[1754788823874,3.2078,4306.7,4306.3,22.88628]
[1754788824167,0.5187,4306.4,4305.7,0.46435]
[1754788824366,1.907,4306.0,4305.9,0.46433]
[1754788824763,1.907,4306.0,4305.9,0.97383]
[1754788825363,1.907,4306.0,4305.9,1.65073]
[1754788825869,1.3883,4306.0,4305.9,1.65073]
[1754788826068,1.907,4306.0,4305.9,0.46433]
[1754788826768,1.907,4306.0,4305.6,37.10917]
[1754788826966,1.907,4305.9,4305.6,55.856]
[1754788827166,0.5187,4305.8,4305.6,22.419]
[1754788827371,0.5187,4305.8,4305.2,0.7131]
[1754788827372,0.46433,4306.0,4305.2,22.88241]
[1754788827669,1.907,4305.3,4305.1,22.418]
[1754788827973,1.907,4305.2,4305.1,22.418]
[1754788828471,1.907,4305.2,4305.1,22.88242]
[1754788828862,1.907,4305.2,4305.1,24.06882]
[1754788829065,1.907,4305.2,4305.1,22.9275]
[1754788829263,1.907,4305.2,4305.1,22.418]
[1754788829461,0.46437,4305.6,4305.1,22.418]
[1754788829462,0.6787,4305.6,4305.1,22.418]
[1754788829667,3.2078,4305.7,4305.5,2.36388]
[1754788830171,3.2078,4305.7,4305.6,1.8995]
[1754788830367,1.3883,4306.0,4305.7,0.46436]
[1754788830573,1.3883,4305.9,4305.8,1.1864]
[1754788830761,1.907,4305.9,4305.8,1.1864]
[1754788833374,1.907,4305.9,4305.8,0.5095]
[1754788833570,3.2078,4306.3,4305.7,0.46436]
[1754788833778,1.907,4305.8,4305.7,0.46436]
[1754788834476,1.3883,4305.9,4305.4,22.87839]
[1754788834778,1.907,4305.4,4305.1,5.80442]
[1754788834979,1.3883,4305.2,4305.1,0.46442]
[1754788835278,1.8866,4305.2,4305.1,0.46442]
[1754788835578,1.8771,4305.5,4304.9,22.413]
[1754788835780,0.46439,4305.5,4304.9,0.46444]
[1754788835981,1.8771,4305.1,4304.6,22.87647]
[1754788836180,1.3788,4305.0,4304.6,22.87647]
[1754788836378,3.2078,4305.3,4304.9,0.46444]
[1754788836578,3.04173777,4305.1,4304.9,0.46444]
[1754788836782,3.04173777,4305.2,4304.9,0.46444]
[1754788837082,3.2078,4305.3,4304.9,0.46444]
[1754788837270,1.8771,4305.0,4304.9,0.46444]
[1754788837470,3.04348384,4305.2,4304.7,0.96946]
[1754788837673,0.46443,4305.1,4304.4,0.46449]
[1754788837873,1.3788,4304.5,4303.8,0.505]
[1754788838077,1.3788,4304.4,4304.1,0.46452]
[1754788838273,1.8771,4304.7,4304.4,0.4645]
[1754788838473,0.6981,4304.6,4304.1,0.505]
[1754788838669,0.6981,4304.6,4303.9,22.411]
[1754788838869,0.46447,4304.7,4304.1,0.6721]
[1754788839069,3.2078,4304.8,4303.9,22.411]
[1754788839070,3.9059,4304.8,4304.6,1.8281]
[1754788839377,0.5,4305.9,4305.8,2.79245]
[1754788839576,0.5,4305.9,4305.8,25.20145]
[1754788839776,2.3771,4305.9,4305.8,0.96435]
[1754788839971,1.6964,4305.9,4305.8,2.79245]
[1754788840172,0.5,4305.9,4305.8,2.79245]
[1754788841376,0.5,4305.9,4305.8,0.96435]
[1754788841582,2.3771,4305.9,4305.8,24.04645]
[1754788841779,2.3771,4305.9,4305.8,0.96435]
[1754788842284,2.3771,4305.9,4305.8,2.14145]
[1754788843973,2.3771,4305.9,4305.8,0.5]
[1754788844579,2.9654,4305.9,4305.8,3.5962]
[1754788844778,2.4671,4305.9,4305.8,3.5962]
[1754788844973,1.769,4305.9,4305.8,3.5962]
[1754788845376,0.5,4305.9,4305.8,24.7341]
[1754788845973,1.1964,4306.9,4306.8,1.1771]
[1754788846174,1.1964,4306.9,4306.8,1.8281]
[1754788846375,3.9059,4307.5,4306.7,3.2078]
[1754788846579,1.8771,4307.4,4307.1,1.8281]
[1754788846787,3.67196,4307.5,4307.1,1.1771]
[1754788847085,1.179,4307.3,4307.1,1.1771]
[1754788847288,1.1964,4307.4,4307.2,1.6202]
[1754788847480,1.1964,4307.4,4307.3,1.8281]
[1754788847980,3.2078,4307.5,4307.4,0.651]
[1754788848183,3.2078,4308.1,4307.5,1.1771]
[1754788848380,3.2078,4308.1,4308.0,2.29221]
[1754788849287,3.9059,4308.1,4308.0,2.29221]
[1754788849486,3.2078,4308.1,4308.0,2.29221]
[1754788850685,1.8771,4308.3,4308.1,1.156]
[1754788850890,1.8771,4308.2,4308.1,1.156]
[1754788851485,1.8771,4308.6,4307.9,0.46412]
[1754788851684,1.8771,4308.6,4308.4,0.46407]
[1754788851888,1.8771,4308.6,4308.5,1.156]
[1754788852184,0.6981,4308.6,4308.5,1.156]
[1754788852582,1.8771,4308.5,4308.0,22.392]
[1754788852889,1.8771,4308.3,4308.2,0.6721]
[1754788853094,1.179,4308.3,4308.2,1.1771]
[1754788853593,1.8771,4308.3,4308.2,1.1771]
[1754788854090,0.6981,4308.3,4308.2,1.8281]
[1754788855889,1.8771,4308.3,4308.2,24.2151]
[1754788856184,1.8771,4308.3,4307.8,1.11512]
[1754788856388,1.8771,4308.3,4307.7,3.2078]
[1754788856389,0.6807,4308.2,4307.9,22.386]
[1754788856591,1.1964,4308.1,4308.0,1.8281]
[1754788856985,2.4654,4308.1,4308.0,25.4812]
[1754788857285,3.1461,4308.1,4308.0,25.4812]
[1754788858290,3.1461,4308.1,4308.0,25.4802]
[1754788858591,3.1461,4308.1,4308.0,25.4782]
[1754788858794,3.1461,4308.1,4308.0,24.8272]
[1754788859089,3.1461,4308.1,4308.0,2.4452]
[1754788859392,3.1461,4308.1,4308.0,0.4743]
[1754788859582,1.269,4307.8,4307.7,3.2078]
[1754788859788,3.1461,4307.8,4307.7,3.0962]
[1754788859987,3.1461,4307.8,4307.7,0.4743]
[1754788860186,3.2078,4308.1,4307.7,0.8333]
[1754788860388,1.9671,4308.3,4308.2,3.56029]
[1754788861492,1.9671,4308.3,4307.3,1.66045]
[1754788861493,1.269,4307.4,4307.3,0.96419]
[1754788861788,3.1461,4307.4,4307.3,1.43849]
[1754788861986,3.1461,4307.4,4307.3,2.04539]
[1754788862187,3.1461,4307.4,4307.3,0.4743]
[1754788862389,3.1461,4306.8,4306.7,0.4743]
[1754788862581,1.269,4306.3,4306.2,2.0455]
[1754788862893,0.3568,4306.3,4306.2,2.6965]
[1754788863092,3.1461,4306.7,4306.6,1.37336]
[1754788863293,3.1461,4306.7,4306.4,0.46427]
[1754788863494,1.269,4306.3,4306.2,1.5812]
[1754788863695,1.269,4306.3,4306.1,1.1153]
[1754788863696,3.1461,4306.3,4306.1,0.4643]
[1754788863896,1.269,4306.1,4306.0,22.84132]
[1754788864095,1.7673,4306.1,4306.0,25.07352]
[1754788864296,3.1461,4306.5,4306.4,1.37338]
[1754788864492,3.1461,4306.5,4306.4,2.69648]
[1754788864696,2.4654,4306.5,4306.4,2.69648]
[1754788864895,2.4654,4306.5,4306.4,2.2322]
[1754788865196,3.1461,4306.5,4306.4,2.2322]
[1754788865400,3.1461,4306.5,4306.4,0.9091]
[1754788865787,3.1461,4306.5,4306.4,1.37338]
[1754788865988,3.1461,4306.5,4306.4,2.74458]
[1754788866495,2.4654,4306.5,4306.4,2.74458]
[1754788866890,3.1448,4306.5,4306.4,2.2803]
[1754788867294,3.2078,4307.0,4306.4,2.2803]
[1754788867493,0.521,4307.9,4307.2,0.4642]
[1754788867798,3.1904,4307.5,4307.4,0.46417]
[1754788867988,0.8167,4307.5,4307.4,0.46417]
[1754788868190,1.8946,4307.8,4307.7,1.11554]
[1754788868390,1.2004,4307.8,4307.7,0.6514]
[1754788868592,0.46409,4308.2,4307.5,0.46416]
[1754788868789,1.8946,4308.1,4307.5,0.46416]
[1754788868992,0.6794,4307.8,4307.3,0.5]
[1754788869287,1.8946,4307.4,4306.4,0.6514]
[1754788869493,2.35877,4307.5,4306.4,0.6514]
[1754788869698,1.8946,4307.3,4306.4,0.6514]
[1754788869995,0.6942,4307.1,4307.0,0.46422]
[1754788870192,1.2004,4307.1,4307.0,1.32182]
[1754788870387,3.64922068,4307.4,4307.3,1.32179]
[1754788870592,1.1794,4307.4,4307.3,2.54159]
[1754788870798,1.7004,4307.4,4307.3,2.54159]
[1754788871300,2.3946,4307.4,4307.3,0.5]
[1754788872307,2.3946,4307.4,4307.3,1.1514]
[1754788872598,2.3946,4307.4,4307.3,0.5]
[1754788874499,2.3946,4307.4,4306.8,0.46424]
[1754788874500,0.46419,4307.3,4306.8,0.46424]
[1754788874706,1.8946,4307.2,4306.7,3.2078]
[1754788874897,1.8946,4307.1,4306.7,3.2078]
[1754788875096,2.98909577,4307.2,4306.7,3.2078]
[1754788875304,1.8946,4306.9,4306.7,3.2078]
[1754788875507,1.8946,4307.0,4306.7,3.2078]
[1754788875802,1.2152,4306.3,4305.6,37.2912]
[1754788876007,0.6794,4306.2,4305.6,37.2912]
[1754788876207,1.2152,4306.1,4305.9,0.46433]
[1754788876511,1.8946,4306.0,4305.9,0.46433]
[1754788877210,1.2152,4305.8,4305.7,0.46436]
[1754788877507,3.07251214,4306.4,4305.6,3.2078]
[1754788877804,3.07251214,4306.2,4305.7,0.46436]
[1754788878017,0.6794,4306.0,4305.7,0.46436]
[1754788878216,1.8946,4305.8,4305.7,0.46436]
[1754788878506,1.8946,4305.8,4305.7,1.64856]
[1754788878705,1.8946,4305.8,4305.7,1.1842]
[1754788878907,1.8946,4305.8,4305.7,0.6514]
[1754788879107,1.8946,4305.8,4305.1,0.46441]
[1754788879108,1.2004,4305.6,4305.1,0.46441]
[1754788879307,2.95981464,4305.8,4305.1,0.46441]
[1754788879509,1.2958,4305.2,4305.1,2.93071]
[1754788879816,3.1904,4305.2,4305.1,1.9335]
[1754788880010,1.2004,4305.0,4304.4,0.4645]
[1754788880211,1.1547,4304.5,4304.4,3.6506]
[1754788880814,1.4961,4304.5,4304.4,3.6506]
[1754788881117,3.1904,4304.5,4304.4,0.4631]
[1754788881309,3.1904,4304.5,4304.4,2.4663]
[1754788881509,2.4962,4304.5,4304.4,3.1861]
[1754788881709,3.1904,4304.5,4304.4,2.4663]
[1754788881906,1.8946,4304.5,4304.4,0.6514]
[1754788882109,1.8946,4304.2,4303.8,25.5758]
[1754788882417,1.8946,4304.2,4304.1,0.6514]
[1754788883613,1.8946,4304.2,4304.1,1.11593]
[1754788883809,1.8946,4304.2,4304.1,0.6514]
[1754788884415,1.8946,4304.2,4303.6,2.4663]
[1754788884416,3.1904,4303.7,4303.6,2.4663]
[1754788886121,2.4962,4303.7,4303.6,2.93088]
[1754788886323,2.4962,4303.7,4303.6,3.65068]
[1754788886519,1.4961,4303.7,4303.6,3.65068]
[1754788887019,1.4961,4303.7,4303.6,3.1861]
[1754788887418,2.4962,4303.7,4303.6,1.5891]
[1754788887623,3.1904,4303.7,4303.6,1.5891]
[1754788887819,3.1904,4303.7,4303.2,0.46463]
[1754788888015,1.2958,4303.4,4303.3,1.1145]
[1754788888222,3.1904,4303.4,4303.3,1.5891]
[1754788888417,3.1904,4303.4,4303.3,1.9335]
[1754788888618,3.1904,4303.4,4303.3,2.4663]
[1754788888821,2.4962,4303.4,4303.3,6.3939]
[1754788889218,4.4082,4304.2,4303.3,6.3939]
[1754788889519,0.46448,4304.6,4304.3,0.5328]
[1754788889718,3.1904,4304.4,4304.3,1.1145]
[1754788890022,1.2958,4304.2,4304.1,1.5891]
[1754788890223,3.1904,4304.2,4304.1,2.4663]
[1754788890927,1.2004,4304.5,4304.1,2.4663]
[1754788891118,1.2958,4303.9,4303.6,3.67238]
[1754788891320,5.704,4304.3,4304.2,2.4663]
[1754788891618,2.4962,4304.3,4304.2,3.1861]
[1754788892324,3.1904,4304.3,4304.2,2.4663]
[1754788893723,3.1904,4304.3,4304.2,2.93082]
[1754788894030,3.1904,4304.3,4304.2,2.4663]
[1754788894726,3.65491,4304.3,4304.2,2.4663]
[1754788895127,3.1904,4304.3,4304.2,2.4663]
[1754788895518,3.6904,4304.3,4304.2,2.9663]
[1754788896925,0.5,4304.3,4304.2,0.5]
[1754788897129,3.6202,4304.3,4304.2,2.9448]
[1754788897327,3.6202,4304.3,4304.2,2.4619]
[1754788897625,3.6202,4304.3,4304.2,0.5]
[1754788897828,12.66177862,4304.3,4304.2,0.5]
[1754788898925,9.86957862,4304.3,4304.2,0.5]
[1754788899124,9.86957862,4304.3,4303.1,2.4448]
[1754788899125,1.1615,4303.2,4303.1,2.4448]
[1754788899326,6.74937862,4304.3,4303.2,2.28983]
[1754788899524,1.1615,4303.4,4303.3,3.0932]
[1754788900327,0.4619,4303.4,4303.3,3.0932]
[1754788901028,2.0047,4303.7,4303.6,3.0932]
[1754788901430,1.1615,4303.7,4303.6,3.0932]
[1754788901731,2.6189,4303.2,4303.1,1.9619]
[1754788901933,3.1202,4303.2,4303.1,2.4448]
[1754788903025,1.2602,4302.6,4302.5,0.9122]
[1754788903227,2.4611,4302.6,4302.5,1.9164]
[1754788903625,2.4611,4302.6,4302.5,3.0932]
[1754788904023,1.5034,4302.6,4302.5,3.0932]
[1754788904721,2.4611,4302.6,4302.5,3.0932]
[1754788904927,3.1202,4302.6,4302.5,0.7914]
[1754788905121,1.2602,4302.3,4302.2,5.6526]
[1754788905334,1.2602,4302.3,4302.2,6.301]
[1754788905335,1.1615,4302.3,4302.2,6.301]
[1754788908030,1.9598,4302.3,4302.2,6.301]
[1754788908237,3.1202,4302.3,4302.0,0.46475]
[1754788908535,3.1202,4302.1,4302.0,0.46475]
[1754788909130,2.4611,4302.1,4302.0,2.86405]
[1754788909428,1.9598,4302.1,4302.0,3.55795]
[1754788910426,1.2009,4302.7,4301.7,26.72178]
[1754788910633,1.1615,4302.7,4302.6,3.0932]
[1754788910834,1.5034,4302.7,4302.6,3.0932]
[1754788911330,2.4611,4302.7,4302.6,3.0932]
[1754788911928,1.5034,4303.0,4302.9,1.268]
[1754788912132,1.5034,4303.0,4302.9,3.0932]
[1754788912332,3.2078,4303.3,4302.4,3.2078]
[1754788912333,3.2078,4303.3,4303.2,1.9637]
[1754788912629,5.6689,4303.3,4303.2,3.0932]
[1754788912832,6.328,4303.3,4303.2,2.4448]
[1754788913035,5.2125,4303.3,4303.2,3.0932]
[1754788913229,1.161,4305.4,4303.8,2.90936]
[1754788913230,5.6689,4303.9,4303.8,2.90936]
[1754788913434,6.87355003,4303.9,4303.8,0.46456]
[1754788913830,6.328,4303.9,4303.8,2.90936]
[1754788914235,6.328,4303.9,4303.8,3.55776]
[1754788914633,5.6689,4303.9,4303.8,3.55776]
[1754788915031,2.4611,4303.9,4303.8,6.76556]
[1754788915231,0.6996,4304.3,4304.1,0.46453]
[1754788915435,1.1615,4304.2,4304.1,3.55773]
[1754788917432,0.54561411,4304.6,4304.4,2.9093]
[1754788917634,3.1202,4304.9,4304.8,2.90925]
[1754788918029,0.4619,4304.9,4304.8,3.55765]
[1754788918231,2.4611,4304.9,4304.8,3.55765]
[1754788918542,2.0047,4304.9,4304.8,3.55765]
[1754788918836,2.4611,4304.9,4304.8,3.55765]
[1754788919227,1.2602,4304.4,4304.3,3.2078]
[1754788919433,1.2602,4304.3,4304.2,1.268]
[1754788919635,3.1202,4304.3,4304.2,2.4448]
[1754788919836,3.1202,4304.0,4303.9,2.4448]
[1754788920238,3.1202,4304.0,4303.9,3.0932]
[1754788920832,3.1202,4304.0,4303.8,3.2078]
[1754788921034,1.9598,4303.5,4303.3,3.2078]
[1754788921339,1.2602,4303.1,4303.0,2.4448]
[1754788921540,3.1202,4303.1,4303.0,2.4448]
[1754788921937,3.9074,4303.8,4303.7,3.0932]
[1754788922142,1.7615,4304.1,4304.0,1.268]
[1754788922346,2.4206,4304.1,4304.0,2.4448]
[1754788922642,2.4206,4304.1,4304.0,0.7914]
[1754788922840,3.1202,4303.5,4303.4,2.9094]
[1754788923033,3.1202,4303.5,4303.4,0.4356]
[1754788923239,2.6638,4303.4,4303.3,0.46461]
[1754788923438,3.1202,4303.4,4303.3,2.42651]
[1754788923642,3.1202,4303.4,4303.3,2.90941]
[1754788924437,3.1202,4303.4,4303.3,3.55781]
[1754788924438,2.4611,4303.4,4303.3,3.55781]
[1754788924637,1.5034,4303.4,4303.3,3.55781]
[1754788924837,0.6996,4304.3,4303.7,2.90937]
[1754788925037,0.4619,4303.8,4303.7,3.0932]
[1754788925436,1.1213,4303.8,4303.7,3.0932]
[1754788925742,3.2078,4304.5,4303.4,1.5648]
[1754788925743,1.2728,4303.5,4303.4,1.5648]
[1754788925943,3.1159,4303.5,4303.4,0.9235]
[1754788926140,3.1159,4303.5,4303.3,0.46461]
[1754788926447,3.1159,4303.2,4303.0,0.6413]
[1754788926633,0.3493,4302.8,4302.7,4.52727]
[1754788926839,3.1159,4302.8,4302.7,5.55167]
[1754788927242,3.1159,4302.8,4302.7,4.6579]
[1754788927442,1.2728,4302.5,4302.4,1.27351]
[1754788927637,3.05281831,4302.8,4302.7,0.3499]
[1754788927832,0.5,4303.1,4303.0,1.2379]
[1754788928034,0.5,4303.1,4303.0,3.0253]
[1754788929343,1.99,4304.0,4303.9,1.2379]
[1754788929544,3.1159,4304.0,4303.9,1.2379]
[1754788929944,3.1159,4304.0,4303.9,2.3841]
[1754788931043,1.2728,4303.3,4303.0,0.5]
[1754788931240,1.8431,4303.1,4303.0,0.5]
[1754788931642,4.84027569,4303.1,4303.0,0.5]
[1754788931843,5.34027569,4303.1,4303.0,0.5]
[1754788933048,8.54807569,4303.1,4303.0,0.5]
[1754788933950,0.46469,4302.7,4302.2,3.2078]
[1754788934142,1.3274,4302.6,4302.0,0.46476]
[1754788934343,1.7622,4302.4,4302.1,0.5049]
[1754788934547,1.7622,4302.3,4302.2,1.61094]
[1754788934943,3.07152224,4303.0,4302.9,1.7874]
[1754788935148,0.5,4303.1,4303.0,1.74715]
[1754788935446,1.1594,4303.1,4303.0,1.7874]
[1754788935837,1.8274,4303.1,4303.0,1.7874]
[1754788936037,2.2622,4303.1,4303.0,1.1462]
[1754788936742,1.8274,4303.1,4303.0,1.1462]
[1754788936943,1.1594,4303.1,4303.0,1.7874]
[1754788937348,0.5,4303.1,4303.0,1.7874]
[1754788937748,1.1594,4303.1,4303.0,1.7874]
[1754788937950,2.2622,4303.1,4303.0,0.5049]
[1754788938448,0.5,4303.1,4302.8,1.1462]
[1754788938843,0.4348,4302.9,4302.8,0.46467]
[1754788939544,1.7622,4302.8,4302.7,1.61088]
[1754788939749,0.6594,4302.8,4302.7,1.61088]
[1754788939944,0.5,4303.1,4302.9,0.46465]
[1754788940145,0.5,4303.1,4303.0,4.9952]
[1754788940345,0.6594,4303.9,4303.8,1.1462]